[Event "Titled Tuesday Blitz August 1 Late 2023"]
[White "Kovalevsky, Stanislav"]
[Black "Przybylski, Wojciech"]
[WhiteFideId "13508598"]
[BlackFideId "1117599"]
[WhiteElo "2517"]
[BlackElo "2633"]
[Result "0-1"]
[Round "10"]
[TimeControl "180+1"]
[Date "2023.08.01"]
[WhiteClock "0:00:02"]
[BlackClock "0:01:10"]
[Board "42"]

1. c4 {[%clk 0:03:00]}  c5 {[%clk 0:02:50]} 2. Nc3 {[%clk 0:03:00]}  Nc6 {[%clk 0:02:49]} 3. g3 {[%clk 0:03:01]}  g6 {[%clk 0:02:49]} 4. Bg2 {[%clk 0:03:01]}  Bg7 {[%clk 0:02:49]} 5. Nf3 {[%clk 0:03:00]}  e6 {[%clk 0:02:48]} 6. h4 {[%clk 0:03:00]}  h5 {[%clk 0:02:48]} 7. d3 {[%clk 0:02:58]}  Nge7 {[%clk 0:02:47]} 8. Bg5 {[%clk 0:02:57]}  O-O {[%clk 0:02:46]} 9. Qd2 {[%clk 0:02:55]}  Kh7 {[%clk 0:02:45]} 10. Ne4 {[%clk 0:02:54]}  f6 {[%clk 0:02:38]} 11. Bf4 {[%clk 0:02:34]}  e5 {[%clk 0:02:36]} 12. Be3 {[%clk 0:01:59]}  d6 {[%clk 0:02:35]} 13. a3 {[%clk 0:01:55]}  Be6 {[%clk 0:02:32]} 14. Nfg5+ {[%clk 0:01:52]}  fxg5 {[%clk 0:02:26]} 15. Nxg5+ {[%clk 0:01:53]}  Kg8 {[%clk 0:02:22]} 16. Nxe6 {[%clk 0:01:54]}  Qd7 {[%clk 0:02:20]} 17. Nxf8 {[%clk 0:01:46]}  Rxf8 {[%clk 0:02:18]} 18. Bh3 {[%clk 0:01:41]}  Nf5 {[%clk 0:02:18]} 19. g4 {[%clk 0:01:32]}  Nxe3 {[%clk 0:02:05]} 20. Qxe3 {[%clk 0:01:31]}  hxg4 {[%clk 0:02:04]} 21. Bg2 {[%clk 0:01:27]}  Nd4 {[%clk 0:02:01]} 22. Bd5+ {[%clk 0:01:25]}  Kh7 {[%clk 0:01:54]} 23. Kd1 {[%clk 0:00:30]}  Bh6 {[%clk 0:01:52]} 24. Qe4 {[%clk 0:00:29]}  Rf4 {[%clk 0:01:42]} 25. Qg2 {[%clk 0:00:20]}  Qa4+ {[%clk 0:01:41]} 26. Ke1 {[%clk 0:00:18]}  Qc2 {[%clk 0:01:42]} 27. f3 {[%clk 0:00:15]}  gxf3 {[%clk 0:01:36]} 28. Qf2 {[%clk 0:00:04]}  fxe2 {[%clk 0:01:23]} 29. h5 {[%clk 0:00:01]}  Rxf2 {[%clk 0:01:19]} 30. hxg6+ {[%clk 0:00:01]}  Kg7 {[%clk 0:01:19]} 31. Kxf2 {[%clk 0:00:01]}  e1=B+ {[%clk 0:01:11]} 32. Kxe1 {[%clk 0:00:02]}  Qe2# {[%clk 0:01:10]} 0-1


[Site "https://www.chess.com"]

[Event "Titled Tuesday Blitz August 1 Late 2023"]
[White "Fishbein, Alexander"]
[Black "Koutlas, Nikolaos"]
[WhiteFideId "2000377"]
[BlackFideId "25827138"]
[WhiteElo "2617"]
[BlackElo "2511"]
[Result "1-0"]
[Round "10"]
[TimeControl "180+1"]
[Date "2023.08.01"]
[WhiteClock "0:00:43"]
[BlackClock "0:00:09"]
[Board "43"]

1. e4 {[%clk 0:03:00]}  c6 {[%clk 0:02:48]} 2. d4 {[%clk 0:02:57]}  d5 {[%clk 0:02:47]} 3. Qf3 {[%clk 0:02:55]}  dxe4 {[%clk 0:02:41]} 4. Qxe4 {[%clk 0:02:55]}  Nf6 {[%clk 0:02:41]} 5. Qd3 {[%clk 0:02:55]}  g6 {[%clk 0:02:33]} 6. Nf3 {[%clk 0:02:54]}  Bg7 {[%clk 0:02:31]} 7. Be2 {[%clk 0:02:50]}  O-O {[%clk 0:02:32]} 8. O-O {[%clk 0:02:50]}  Bf5 {[%clk 0:02:31]} 9. Qb3 {[%clk 0:02:49]}  Qb6 {[%clk 0:02:30]} 10. c3 {[%clk 0:02:48]}  Nbd7 {[%clk 0:02:29]} 11. Nbd2 {[%clk 0:02:48]}  Rfe8 {[%clk 0:02:02]} 12. Nc4 {[%clk 0:02:46]}  Qc7 {[%clk 0:01:56]} 13. g3 {[%clk 0:02:45]}  Nd5 {[%clk 0:01:52]} 14. Re1 {[%clk 0:02:39]}  b5 {[%clk 0:01:46]} 15. Ne3 {[%clk 0:02:37]}  Nxe3 {[%clk 0:01:34]} 16. Bxe3 {[%clk 0:02:37]}  e5 {[%clk 0:01:31]} 17. Ng5 {[%clk 0:02:34]}  Nb6 {[%clk 0:01:27]} 18. dxe5 {[%clk 0:02:20]}  Bxe5 {[%clk 0:01:26]} 19. Bf3 {[%clk 0:02:08]}  Nd5 {[%clk 0:01:25]} 20. Bd4 {[%clk 0:01:56]}  Bxd4 {[%clk 0:01:22]} 21. cxd4 {[%clk 0:01:55]}  Qd6 {[%clk 0:01:11]} 22. Bxd5 {[%clk 0:01:52]}  Qxd5 {[%clk 0:01:11]} 23. Qxd5 {[%clk 0:01:52]}  cxd5 {[%clk 0:01:11]} 24. Nf3 {[%clk 0:01:45]}  f6 {[%clk 0:01:11]} 25. Nd2 {[%clk 0:01:42]}  Kf7 {[%clk 0:01:09]} 26. Nb3 {[%clk 0:01:41]}  Rxe1+ {[%clk 0:01:04]} 27. Rxe1 {[%clk 0:01:40]}  Rc8 {[%clk 0:01:00]} 28. Nc5 {[%clk 0:01:40]}  a5 {[%clk 0:01:00]} 29. a3 {[%clk 0:01:38]}  Rc7 {[%clk 0:00:47]} 30. f3 {[%clk 0:01:37]}  h5 {[%clk 0:00:46]} 31. Kf2 {[%clk 0:01:37]}  g5 {[%clk 0:00:45]} 32. h4 {[%clk 0:01:34]}  gxh4 {[%clk 0:00:42]} 33. gxh4 {[%clk 0:01:34]}  Rc8 {[%clk 0:00:37]} 34. Kg3 {[%clk 0:01:33]}  Rg8+ {[%clk 0:00:33]} 35. Kf4 {[%clk 0:01:33]}  Bc8 {[%clk 0:00:33]} 36. Re2 {[%clk 0:01:30]}  Rg1 {[%clk 0:00:33]} 37. Rc2 {[%clk 0:01:24]}  Rh1 {[%clk 0:00:33]} 38. Ke3 {[%clk 0:01:15]}  Rxh4 {[%clk 0:00:32]} 39. Nb3 {[%clk 0:01:15]}  Bf5 {[%clk 0:00:32]} 40. Rc7+ {[%clk 0:01:14]}  Kg6 {[%clk 0:00:33]} 41. Nxa5 {[%clk 0:01:13]}  Rh2 {[%clk 0:00:33]} 42. Nc6 {[%clk 0:01:13]}  Rxb2 {[%clk 0:00:28]} 43. Kf4 {[%clk 0:01:13]}  Bd3 {[%clk 0:00:22]} 44. Ne7+ {[%clk 0:01:12]}  Kf7 {[%clk 0:00:19]} 45. Nxd5+ {[%clk 0:01:03]}  Ke6 {[%clk 0:00:20]} 46. Ne3 {[%clk 0:01:01]}  h4 {[%clk 0:00:18]} 47. d5+ {[%clk 0:00:57]}  Kd6 {[%clk 0:00:17]} 48. Rc6+ {[%clk 0:00:57]}  Kd7 {[%clk 0:00:17]} 49. Rxf6 {[%clk 0:00:56]}  h3 {[%clk 0:00:17]} 50. Rh6 {[%clk 0:00:54]}  h2 {[%clk 0:00:16]} 51. Ng4 {[%clk 0:00:54]}  Rb3 {[%clk 0:00:17]} 52. Ne5+ {[%clk 0:00:49]}  Kc8 {[%clk 0:00:12]} 53. Rxh2 {[%clk 0:00:46]}  Rxa3 {[%clk 0:00:12]} 54. d6 {[%clk 0:00:46]}  Ra6 {[%clk 0:00:07]} 55. Rh8+ {[%clk 0:00:45]}  Kb7 {[%clk 0:00:06]} 56. d7 {[%clk 0:00:45]}  Rd6 {[%clk 0:00:05]} 57. d8=Q {[%clk 0:00:45]}  Rxd8 {[%clk 0:00:05]} 58. Rxd8 {[%clk 0:00:45]}  Bb1 {[%clk 0:00:06]} 59. Ke3 {[%clk 0:00:44]}  Kc7 {[%clk 0:00:06]} 60. Rd1 {[%clk 0:00:43]}  Bf5 {[%clk 0:00:05]} 61. Rc1+ {[%clk 0:00:43]}  Kb6 {[%clk 0:00:05]} 62. Kd4 {[%clk 0:00:43]}  Be6 {[%clk 0:00:06]} 63. f4 {[%clk 0:00:43]}  b4 {[%clk 0:00:06]} 64. Rc6+ {[%clk 0:00:43]}  Kb5 {[%clk 0:00:06]} 65. Rxe6 {[%clk 0:00:44]}  b3 {[%clk 0:00:06]} 66. Re8 {[%clk 0:00:44]}  Kb4 {[%clk 0:00:06]} 67. Rb8+ {[%clk 0:00:44]}  Ka3 {[%clk 0:00:07]} 68. Rxb3+ {[%clk 0:00:44]}  Ka4 {[%clk 0:00:07]} 69. f5 {[%clk 0:00:45]}  Ka5 {[%clk 0:00:08]} 70. f6 {[%clk 0:00:44]}  Ka6 {[%clk 0:00:09]} 71. f7 {[%clk 0:00:44]}  Ka7 {[%clk 0:00:10]} 72. f8=Q {[%clk 0:00:43]}  Ka6 {[%clk 0:00:09]} 73. Qa3# {[%clk 0:00:43]} 1-0


[Site "https://www.chess.com"]

[Event "Titled Tuesday Blitz August 1 Late 2023"]
[White "Droin, Augustin"]
[Black "Araujo Sanchez, Josue"]
[WhiteFideId "45105987"]
[BlackFideId "6416896"]
[WhiteElo "2510"]
[BlackElo "2617"]
[Result "1-0"]
[Round "10"]
[TimeControl "180+1"]
[Date "2023.08.01"]
[WhiteClock "0:01:43"]
[BlackClock "0:01:51"]
[Board "44"]

1. e4 {[%clk 0:03:00]}  c6 {[%clk 0:02:46]} 2. Nf3 {[%clk 0:02:55]}  d5 {[%clk 0:02:47]} 3. d3 {[%clk 0:02:56]}  Bg4 {[%clk 0:02:44]} 4. h3 {[%clk 0:02:52]}  Bxf3 {[%clk 0:02:43]} 5. Qxf3 {[%clk 0:02:41]}  e6 {[%clk 0:02:44]} 6. Nd2 {[%clk 0:02:40]}  Bd6 {[%clk 0:02:42]} 7. g3 {[%clk 0:02:41]}  Ne7 {[%clk 0:02:40]} 8. Bg2 {[%clk 0:02:41]}  Nd7 {[%clk 0:02:39]} 9. O-O {[%clk 0:02:41]}  O-O {[%clk 0:02:39]} 10. Qe2 {[%clk 0:02:42]}  e5 {[%clk 0:02:27]} 11. c3 {[%clk 0:02:39]}  a5 {[%clk 0:02:23]} 12. a4 {[%clk 0:02:39]}  f5 {[%clk 0:02:21]} 13. b3 {[%clk 0:02:09]}  f4 {[%clk 0:02:18]} 14. d4 {[%clk 0:02:06]}  fxg3 {[%clk 0:02:12]} 15. fxg3 {[%clk 0:02:07]}  Rxf1+ {[%clk 0:02:11]} 16. Nxf1 {[%clk 0:02:08]}  exd4 {[%clk 0:02:11]} 17. exd5 {[%clk 0:02:05]}  Nc5 {[%clk 0:02:08]} 18. dxc6 {[%clk 0:02:00]}  Nxc6 {[%clk 0:02:06]} 19. Bxc6 {[%clk 0:01:56]}  bxc6 {[%clk 0:02:04]} 20. cxd4 {[%clk 0:01:56]}  Na6 {[%clk 0:02:01]} 21. Qc4+ {[%clk 0:01:54]}  Kh8 {[%clk 0:01:59]} 22. Bd2 {[%clk 0:01:51]}  Nb4 {[%clk 0:01:57]} 23. Re1 {[%clk 0:01:51]}  Qd7 {[%clk 0:01:56]} 24. Qe6 {[%clk 0:01:50]}  Qd8 {[%clk 0:01:56]} 25. Re4 {[%clk 0:01:48]}  h6 {[%clk 0:01:55]} 26. Bxh6 {[%clk 0:01:47]}  Nd5 {[%clk 0:01:50]} 27. Bxg7+ {[%clk 0:01:43]}  Kxg7 {[%clk 0:01:50]} 28. Rg4+ {[%clk 0:01:43]}  Kf8 {[%clk 0:01:51]} 29. Rg8# {[%clk 0:01:43]} 1-0


[Site "https://www.chess.com"]

[Event "Titled Tuesday Blitz August 1 Late 2023"]
[White "Jovic, Stanoje"]
[Black "Wu, Rochelle"]
[WhiteFideId "905020"]
[BlackFideId "30908132"]
[WhiteElo "2505"]
[BlackElo "2614"]
[Result "0-1"]
[Round "10"]
[TimeControl "180+1"]
[Date "2023.08.01"]
[WhiteClock "0:00:00"]
[BlackClock "0:00:21"]
[Board "45"]

1. c4 {[%clk 0:03:00]}  Nf6 {[%clk 0:02:59]} 2. g3 {[%clk 0:03:01]}  c6 {[%clk 0:02:58]} 3. Bg2 {[%clk 0:03:00]}  d5 {[%clk 0:02:59]} 4. cxd5 {[%clk 0:03:00]}  cxd5 {[%clk 0:02:59]} 5. Nf3 {[%clk 0:03:01]}  Nc6 {[%clk 0:02:59]} 6. d4 {[%clk 0:03:01]}  Bf5 {[%clk 0:02:57]} 7. Nc3 {[%clk 0:02:58]}  e6 {[%clk 0:02:57]} 8. O-O {[%clk 0:02:58]}  Bd6 {[%clk 0:02:55]} 9. Bf4 {[%clk 0:02:57]}  O-O {[%clk 0:02:54]} 10. Ne5 {[%clk 0:02:56]}  Bxe5 {[%clk 0:02:48]} 11. dxe5 {[%clk 0:02:54]}  Nd7 {[%clk 0:02:47]} 12. e4 {[%clk 0:02:52]}  dxe4 {[%clk 0:02:47]} 13. Nxe4 {[%clk 0:02:52]}  Ndxe5 {[%clk 0:02:32]} 14. Nd6 {[%clk 0:02:49]}  Ng6 {[%clk 0:01:32]} 15. Nxb7 {[%clk 0:02:40]}  Qb6 {[%clk 0:01:30]} 16. Qb3 {[%clk 0:02:32]}  Qxb3 {[%clk 0:01:07]} 17. axb3 {[%clk 0:02:30]}  Nd4 {[%clk 0:01:04]} 18. Bd6 {[%clk 0:02:13]}  Rfe8 {[%clk 0:00:49]} 19. b4 {[%clk 0:02:05]}  Rac8 {[%clk 0:00:31]} 20. Bc5 {[%clk 0:01:57]}  Nb5 {[%clk 0:00:27]} 21. Rfd1 {[%clk 0:01:47]}  Ne5 {[%clk 0:00:23]} 22. Ra5 {[%clk 0:01:43]}  a6 {[%clk 0:00:22]} 23. Rxa6 {[%clk 0:01:42]}  Bc2 {[%clk 0:00:18]} 24. Rd2 {[%clk 0:01:34]}  Bg6 {[%clk 0:00:17]} 25. Rb6 {[%clk 0:01:28]}  Nc4 {[%clk 0:00:16]} 26. Rxb5 {[%clk 0:01:19]}  Nxd2 {[%clk 0:00:16]} 27. Nd6 {[%clk 0:01:00]}  Rb8 {[%clk 0:00:17]} 28. Rxb8 {[%clk 0:00:51]}  Rxb8 {[%clk 0:00:18]} 29. b5 {[%clk 0:00:52]}  Nb3 {[%clk 0:00:16]} 30. Ba7 {[%clk 0:00:46]}  Rd8 {[%clk 0:00:16]} 31. b6 {[%clk 0:00:45]}  Na5 {[%clk 0:00:15]} 32. b7 {[%clk 0:00:44]}  Nxb7 {[%clk 0:00:15]} 33. Nxb7 {[%clk 0:00:43]}  Rd1+ {[%clk 0:00:15]} 34. Bf1 {[%clk 0:00:43]}  Bd3 {[%clk 0:00:16]} 35. Kg2 {[%clk 0:00:40]}  Bxf1+ {[%clk 0:00:16]} 36. Kf3 {[%clk 0:00:40]}  Bc4 {[%clk 0:00:16]} 37. Nc5 {[%clk 0:00:39]}  Rd2 {[%clk 0:00:15]} 38. b3 {[%clk 0:00:37]}  Bxb3 {[%clk 0:00:15]} 39. Ke3 {[%clk 0:00:34]}  Rb2 {[%clk 0:00:16]} 40. Nd3 {[%clk 0:00:34]}  Rb1 {[%clk 0:00:16]} 41. Bd4 {[%clk 0:00:33]}  Bd5 {[%clk 0:00:17]} 42. h4 {[%clk 0:00:32]}  Rb3 {[%clk 0:00:16]} 43. Kd2 {[%clk 0:00:31]}  h6 {[%clk 0:00:15]} 44. g4 {[%clk 0:00:29]}  Rb8 {[%clk 0:00:16]} 45. g5 {[%clk 0:00:29]}  Rd8 {[%clk 0:00:16]} 46. Ke3 {[%clk 0:00:30]}  Bc4 {[%clk 0:00:17]} 47. Ne5 {[%clk 0:00:29]}  Bd5 {[%clk 0:00:17]} 48. gxh6 {[%clk 0:00:28]}  gxh6 {[%clk 0:00:18]} 49. Ng4 {[%clk 0:00:29]}  Kh7 {[%clk 0:00:18]} 50. Nf6+ {[%clk 0:00:29]}  Kg6 {[%clk 0:00:19]} 51. h5+ {[%clk 0:00:27]}  Kf5 {[%clk 0:00:19]} 52. f3 {[%clk 0:00:25]}  e5 {[%clk 0:00:19]} 53. Bb6 {[%clk 0:00:24]}  Rd6 {[%clk 0:00:19]} 54. Nxd5 {[%clk 0:00:22]}  Rxd5 {[%clk 0:00:19]} 55. Kf2 {[%clk 0:00:18]}  Rb5 {[%clk 0:00:20]} 56. Be3 {[%clk 0:00:18]}  e4 {[%clk 0:00:18]} 57. Bxh6 {[%clk 0:00:16]}  Rb2+ {[%clk 0:00:19]} 58. Kg3 {[%clk 0:00:16]}  Rb3 {[%clk 0:00:19]} 59. Kg2 {[%clk 0:00:14]}  Rxf3 {[%clk 0:00:19]} 60. Bg7 {[%clk 0:00:14]}  Kg5 {[%clk 0:00:19]} 61. h6 {[%clk 0:00:13]}  Kg6 {[%clk 0:00:19]} 62. Bf8 {[%clk 0:00:13]}  f5 {[%clk 0:00:19]} 63. Bg7 {[%clk 0:00:12]}  Rf4 {[%clk 0:00:19]} 64. Kg3 {[%clk 0:00:12]}  Rf1 {[%clk 0:00:19]} 65. Kg2 {[%clk 0:00:12]}  Ra1 {[%clk 0:00:19]} 66. Kg3 {[%clk 0:00:12]}  Ra7 {[%clk 0:00:19]} 67. Bf8 {[%clk 0:00:11]}  Rh7 {[%clk 0:00:19]} 68. Kf4 {[%clk 0:00:09]}  Rxh6 {[%clk 0:00:19]} 69. Be7 {[%clk 0:00:09]}  Rh7 {[%clk 0:00:19]} 70. Bd8 {[%clk 0:00:08]}  Rd7 {[%clk 0:00:19]} 71. Bb6 {[%clk 0:00:07]}  Rd3 {[%clk 0:00:19]} 72. Ba7 {[%clk 0:00:07]}  Rf3+ {[%clk 0:00:19]} 73. Ke5 {[%clk 0:00:07]}  e3 {[%clk 0:00:20]} 74. Bb6 {[%clk 0:00:03]}  e2 {[%clk 0:00:19]} 75. Ba5 {[%clk 0:00:03]}  e1=Q+ {[%clk 0:00:19]} 76. Bxe1 {[%clk 0:00:02]}  Re3+ {[%clk 0:00:20]} 77. Kf4 {[%clk 0:00:02]}  Rxe1 {[%clk 0:00:21]} 78. Kf3 {[%clk 0:00:00]}  Re4 {[%clk 0:00:21]} 0-1


[Site "https://www.chess.com"]

[Event "Titled Tuesday Blitz August 1 Late 2023"]
[White "Leebit02"]
[Black "Papayan, Oleg"]
[BlackFideId "4193911"]
[WhiteElo "2560"]
[BlackElo "2501"]
[Result "1-0"]
[Round "10"]
[TimeControl "180+1"]
[Date "2023.08.01"]
[WhiteClock "0:00:15"]
[BlackClock "0:00:00"]
[Board "46"]

1. e4 {[%clk 0:03:00]}  d5 {[%clk 0:02:59]} 2. exd5 {[%clk 0:03:00]}  Qxd5 {[%clk 0:03:00]} 3. Nc3 {[%clk 0:03:00]}  Qd8 {[%clk 0:03:01]} 4. d4 {[%clk 0:02:58]}  c6 {[%clk 0:03:02]} 5. Nf3 {[%clk 0:02:53]}  Bf5 {[%clk 0:03:02]} 6. Bc4 {[%clk 0:02:48]}  e6 {[%clk 0:03:02]} 7. O-O {[%clk 0:02:40]}  Nf6 {[%clk 0:03:02]} 8. h3 {[%clk 0:02:33]}  h6 {[%clk 0:03:02]} 9. Re1 {[%clk 0:02:32]}  Be7 {[%clk 0:03:02]} 10. Be3 {[%clk 0:02:25]}  O-O {[%clk 0:03:02]} 11. a4 {[%clk 0:02:20]}  a5 {[%clk 0:03:02]} 12. Ne2 {[%clk 0:02:15]}  Nbd7 {[%clk 0:02:59]} 13. Ng3 {[%clk 0:02:14]}  Bh7 {[%clk 0:03:00]} 14. Qe2 {[%clk 0:02:12]}  Nb6 {[%clk 0:02:58]} 15. Bb3 {[%clk 0:02:10]}  Nbd5 {[%clk 0:02:58]} 16. Bd2 {[%clk 0:02:09]}  Bd6 {[%clk 0:02:47]} 17. Ne5 {[%clk 0:02:09]}  Qc7 {[%clk 0:02:40]} 18. Nh5 {[%clk 0:02:00]}  Nxh5 {[%clk 0:02:29]} 19. Qxh5 {[%clk 0:01:59]}  Rfe8 {[%clk 0:01:18]} 20. Qg4 {[%clk 0:01:07]}  Bf5 {[%clk 0:01:15]} 21. Qh4 {[%clk 0:01:05]}  Qe7 {[%clk 0:00:50]} 22. Qh5 {[%clk 0:00:59]}  Nf6 {[%clk 0:00:51]} 23. Qf3 {[%clk 0:00:57]}  Rad8 {[%clk 0:00:26]} 24. Bxa5 {[%clk 0:00:54]}  Ra8 {[%clk 0:00:24]} 25. Bd2 {[%clk 0:00:52]}  Bh7 {[%clk 0:00:23]} 26. Bf4 {[%clk 0:00:45]}  Nd5 {[%clk 0:00:21]} 27. Bg3 {[%clk 0:00:43]}  Rad8 {[%clk 0:00:16]} 28. c3 {[%clk 0:00:40]}  Qf6 {[%clk 0:00:13]} 29. Qe2 {[%clk 0:00:35]}  Nf4 {[%clk 0:00:12]} 30. Bxf4 {[%clk 0:00:29]}  Qxf4 {[%clk 0:00:13]} 31. g3 {[%clk 0:00:29]}  Qf5 {[%clk 0:00:12]} 32. Kg2 {[%clk 0:00:27]}  Ra8 {[%clk 0:00:06]} 33. Rac1 {[%clk 0:00:25]}  Red8 {[%clk 0:00:05]} 34. Bc2 {[%clk 0:00:25]}  Qf6 {[%clk 0:00:04]} 35. Bxh7+ {[%clk 0:00:23]}  Kxh7 {[%clk 0:00:05]} 36. b3 {[%clk 0:00:20]}  Bxe5 {[%clk 0:00:05]} 37. Qxe5 {[%clk 0:00:19]}  Qxe5 {[%clk 0:00:04]} 38. Rxe5 {[%clk 0:00:20]}  Rd5 {[%clk 0:00:04]} 39. Rxd5 {[%clk 0:00:18]}  cxd5 {[%clk 0:00:03]} 40. Kf3 {[%clk 0:00:18]}  Kg6 {[%clk 0:00:02]} 41. Ke3 {[%clk 0:00:19]}  Kf6 {[%clk 0:00:03]} 42. Kd3 {[%clk 0:00:18]}  Ke7 {[%clk 0:00:03]} 43. Ra1 {[%clk 0:00:16]}  Kd6 {[%clk 0:00:02]} 44. c4 {[%clk 0:00:14]}  dxc4+ {[%clk 0:00:02]} 45. bxc4 {[%clk 0:00:15]}  f6 {[%clk 0:00:03]} 46. f4 {[%clk 0:00:14]}  Ra5 {[%clk 0:00:03]} 47. Kc3 {[%clk 0:00:14]}  Kc6 {[%clk 0:00:03]} 48. Kb4 {[%clk 0:00:15]}  b6 {[%clk 0:00:03]} 49. Re1 {[%clk 0:00:15]}  Kd6 {[%clk 0:00:03]} 50. c5+ {[%clk 0:00:14]}  Kd5 {[%clk 0:00:01]} 51. cxb6 {[%clk 0:00:14]}  Ra6 {[%clk 0:00:02]} 52. Kb5 {[%clk 0:00:15]}  Ra8 {[%clk 0:00:01]} 53. b7 {[%clk 0:00:15]}  Re8 {[%clk 0:00:02]} 54. a5 {[%clk 0:00:15]}  Kxd4 {[%clk 0:00:00]} 55. a6 {[%clk 0:00:15]} 1-0


[Site "https://www.chess.com"]

[Event "Titled Tuesday Blitz August 1 Late 2023"]
[White "Perez, Maximiliano"]
[Black "Kanyamarala, Tarun"]
[WhiteFideId "117234"]
[BlackFideId "45004714"]
[WhiteElo "2557"]
[BlackElo "2492"]
[Result "1-0"]
[Round "10"]
[TimeControl "180+1"]
[Date "2023.08.01"]
[WhiteClock "0:00:23"]
[BlackClock "0:01:18"]
[Board "48"]

1. e4 {[%clk 0:03:00]}  c5 {[%clk 0:02:56]} 2. Nf3 {[%clk 0:03:00]}  e6 {[%clk 0:02:57]} 3. d3 {[%clk 0:03:00]}  Nc6 {[%clk 0:02:55]} 4. g3 {[%clk 0:02:59]}  g6 {[%clk 0:02:54]} 5. Bg2 {[%clk 0:03:00]}  Bg7 {[%clk 0:02:55]} 6. O-O {[%clk 0:03:00]}  Nge7 {[%clk 0:02:55]} 7. c3 {[%clk 0:03:00]}  d5 {[%clk 0:02:54]} 8. Nbd2 {[%clk 0:02:57]}  O-O {[%clk 0:02:54]} 9. Re1 {[%clk 0:02:55]}  Qc7 {[%clk 0:02:53]} 10. h4 {[%clk 0:02:50]}  h6 {[%clk 0:02:48]} 11. Nf1 {[%clk 0:02:46]}  Rd8 {[%clk 0:02:47]} 12. exd5 {[%clk 0:02:38]}  Nxd5 {[%clk 0:02:45]} 13. Qe2 {[%clk 0:02:38]}  e5 {[%clk 0:02:44]} 14. N3d2 {[%clk 0:02:23]}  Bf5 {[%clk 0:02:40]} 15. Ne4 {[%clk 0:02:19]}  b6 {[%clk 0:02:32]} 16. Ne3 {[%clk 0:02:08]}  Nxe3 {[%clk 0:02:30]} 17. Bxe3 {[%clk 0:02:09]}  Rac8 {[%clk 0:02:29]} 18. Rad1 {[%clk 0:02:09]}  Kh7 {[%clk 0:02:21]} 19. h5 {[%clk 0:02:05]}  Qd7 {[%clk 0:02:20]} 20. Bf3 {[%clk 0:01:39]}  Qe7 {[%clk 0:02:05]} 21. b3 {[%clk 0:01:28]}  Rd7 {[%clk 0:02:00]} 22. Kg2 {[%clk 0:01:23]}  Nd8 {[%clk 0:01:59]} 23. Rh1 {[%clk 0:01:22]}  Ne6 {[%clk 0:01:59]} 24. hxg6+ {[%clk 0:01:11]}  fxg6 {[%clk 0:01:59]} 25. Qd2 {[%clk 0:00:34]}  h5 {[%clk 0:01:48]} 26. Qe2 {[%clk 0:00:32]}  Rf8 {[%clk 0:01:42]} 27. g4 {[%clk 0:00:27]}  Bxe4 {[%clk 0:01:41]} 28. Bxe4 {[%clk 0:00:28]}  h4 {[%clk 0:01:37]} 29. g5 {[%clk 0:00:24]}  Nxg5 {[%clk 0:01:36]} 30. Qh5+ {[%clk 0:00:22]}  Bh6 {[%clk 0:01:25]} 31. Qxg6+ {[%clk 0:00:23]}  Kh8 {[%clk 0:01:23]} 32. Qxh6+ {[%clk 0:00:23]}  Nh7 {[%clk 0:01:23]} 33. Rxh4 {[%clk 0:00:23]}  Rg8+ {[%clk 0:01:18]} 34. Kf1 {[%clk 0:00:23]} 1-0


[Site "https://www.chess.com"]

[Event "Titled Tuesday Blitz August 1 Late 2023"]
[White "Graif, William"]
[Black "Salazar Farias, Luis German"]
[WhiteFideId "2609835"]
[BlackFideId "3902170"]
[WhiteElo "2553"]
[BlackElo "2487"]
[Result "1-0"]
[Round "10"]
[TimeControl "180+1"]
[Date "2023.08.01"]
[WhiteClock "0:00:17"]
[BlackClock "0:00:00"]
[Board "51"]

1. e4 {[%clk 0:02:59]}  c6 {[%clk 0:02:56]} 2. d4 {[%clk 0:02:59]}  d5 {[%clk 0:02:56]} 3. Nc3 {[%clk 0:03:00]}  dxe4 {[%clk 0:02:56]} 4. Bc4 {[%clk 0:03:00]}  Nf6 {[%clk 0:02:50]} 5. f3 {[%clk 0:02:59]}  exf3 {[%clk 0:02:43]} 6. Nxf3 {[%clk 0:03:00]}  Bf5 {[%clk 0:02:38]} 7. O-O {[%clk 0:02:59]}  e6 {[%clk 0:02:38]} 8. Ng5 {[%clk 0:02:59]}  Bg6 {[%clk 0:02:38]} 9. Bxe6 {[%clk 0:02:59]}  fxe6 {[%clk 0:02:28]} 10. Nxe6 {[%clk 0:03:00]}  Qd7 {[%clk 0:02:12]} 11. Bg5 {[%clk 0:02:58]}  Bf7 {[%clk 0:01:30]} 12. Nxg7+ {[%clk 0:02:10]}  Bxg7 {[%clk 0:01:26]} 13. Bxf6 {[%clk 0:01:48]}  O-O {[%clk 0:01:06]} 14. Bxg7 {[%clk 0:01:37]}  Kxg7 {[%clk 0:01:06]} 15. Ne4 {[%clk 0:01:35]}  Na6 {[%clk 0:00:44]} 16. Nf6 {[%clk 0:01:27]}  Qe6 {[%clk 0:00:32]} 17. Qd2 {[%clk 0:01:07]}  Bg6 {[%clk 0:00:19]} 18. Rae1 {[%clk 0:01:06]}  Qd6 {[%clk 0:00:20]} 19. Qg5 {[%clk 0:00:57]}  Qxd4+ {[%clk 0:00:09]} 20. Kh1 {[%clk 0:00:56]}  Rf7 {[%clk 0:00:09]} 21. Nh5+ {[%clk 0:00:52]}  Kh8 {[%clk 0:00:09]} 22. Rxf7 {[%clk 0:00:45]}  Bxf7 {[%clk 0:00:09]} 23. Nf6 {[%clk 0:00:32]}  Bg6 {[%clk 0:00:05]} 24. h3 {[%clk 0:00:31]}  Rf8 {[%clk 0:00:04]} 25. Ng4 {[%clk 0:00:26]}  Qf4 {[%clk 0:00:04]} 26. Qe7 {[%clk 0:00:24]}  h5 {[%clk 0:00:03]} 27. Ne5 {[%clk 0:00:23]}  Bh7 {[%clk 0:00:02]} 28. Nd7 {[%clk 0:00:18]}  Rg8 {[%clk 0:00:00]} 29. Nf6 {[%clk 0:00:17]} 1-0


[Site "https://www.chess.com"]